{"text_format":"1","workbook":"xlsx","n_sheets":3,"sheets":["Sheet1","الاصناف والعملاء","الفاتورة"],"not_rendered":{"charts":0,"images":0,"macros":1,"external_links":0,"defined_names":3,"comments":0,"pivot_tables":0},"unopened":[],"bounds":{"document_bytes":16777216,"sheet_cells":100000,"rows_first":2000,"rows_last":500,"rows_between":2000,"halvings":0,"cell_chars":16384,"cell_head_chars":4096},"cells_cut":0,"cells_raw":0,"read":"whole","date_system":"1900"}

{"sheet":"Sheet1","index":0,"n_rows":0,"n_cols":0,"rows_kept":0,"cut":false,"hidden":false,"merged":[]}

{"sheet":"الاصناف والعملاء","index":1,"n_rows":6,"n_cols":10,"rows_kept":6,"cut":false,"hidden":false,"merged":[]}
[]
[null,"الكود","الصنف","السعر","نوع البضاعة",null,"الكود","العميل","المندوب","المشرف"]
[null,1,"صنف رقم 1",2,"نقدى",null,100,"العميل رقم 1","المندوب رقم 2","على "]
[null,2,"صنف رقم 2",4,"اَجلة",null,200,"العميل رقم 2","المندوب رقم 1 ","ابراهيم"]
[null,3,"صنف رقم 3",5,"مناقصة",null,300,"العميل رقم 3","المندوب رقم 2","على "]
[null,4,"صنف رقم 4",3,"استكمال",null,400,"العميل رقم 4","المندوب رقم 1 ","ابراهيم"]

{"sheet":"الفاتورة","index":2,"n_rows":1006,"n_cols":16,"rows_kept":1006,"cut":false,"hidden":false,"merged":[]}
[]
[null,"رقم الفاتورة","التاريخ","نوع البضاعة","كود العميل","العميل","المندوب","المشرف","كود الصنف","الصنف","السعر","الكمية","الاجمالى","نسبة الخصم","قيمة الخصم","الإجمالى العام"]
[null,1,"2018-06-01","مناقصة",100,"المندوب رقم 2","العميل رقم 1","على ",1,"صنف رقم 1",2,5,10,0.15,{"$f":"IF(M3=\"\",\"\",M3*N3)","v":1.5},{"$f":"IF(M3=\"\",\"\",M3-O3)","v":8.5}]
[null,1,"2018-06-01","مناقصة",100,"المندوب رقم 2","العميل رقم 1","على ",2,"صنف رقم 2",4,5,20,0.15,{"$f":"IF(M4=\"\",\"\",M4*N4)","v":3},{"$f":"IF(M4=\"\",\"\",M4-O4)","v":17}]
[null,1,"2020-12-27","نقدى",200,"المندوب رقم 1 ","العميل رقم 2","ابراهيم",1,"صنف رقم 1",2,2,4,0.15,0.6,3.4]
[null,1,"2020-12-27","نقدى",200,"المندوب رقم 1 ","العميل رقم 2","ابراهيم",2,"صنف رقم 2",4,2,8,0.15,1.2,6.8]
[null,1,"2020-12-27","نقدى",200,"المندوب رقم 1 ","العميل رقم 2","ابراهيم",1,"صنف رقم 1",2,2,4,0.15,0.6,3.4]
[null,1,"2020-12-27","نقدى",200,"المندوب رقم 1 ","العميل رقم 2","ابراهيم",2,"صنف رقم 2",4,2,8,0.15,1.2,6.8]
[null,null,null,null,null,null,null,null,null,null,null,null,null,0.15,"",""]
[null,null,null,null,null,null,null,null,null,null,null,null,null,0.15,"",""]
[null,null,null,null,null,null,null,null,null,null,null,null,null,0.15,"",""]
[null,null,null,null,null,null,null,null,null,null,null,null,null,0.15,"",""]
[null,null,null,null,null,null,null,null,null,null,null,null,null,0.15,"",""]
[null,null,null,null,null,null,null,null,null,null,null,null,null,0.15,"",""]
[null,null,null,null,null,null,null,null,null,null,null,null,null,0.15,"",""]
[null,null,null,null,null,null,null,null,null,null,null,null,null,0.15,"",""]
[null,null,null,null,null,null,null,null,null,null,null,null,null,0.15,"",""]
[null,null,null,null,null,null,null,null,null,null,null,null,null,0.15,"",""]
[null,null,null,null,null,null,null,null,null,null,null,null,null,0.15,"",""]
[null,null,null,null,null,null,null,null,null,null,null,null,null,0.15,"",""]
[null,null,null,null,null,null,null,null,null,null,null,null,null,0.15,"",""]
[null,null,null,null,null,null,null,null,null,null,null,null,null,0.15,"",""]
[null,null,null,null,null,null,null,null,null,null,null,null,{"$f":"IF(L23=\"\",\"\",K23*L23)","v":""},0.15,"",""]
[null,null,null,null,null,null,null,null,null,null,null,null,"",0.15,"",""]
[null,null,null,null,null,null,null,null,null,null,null,null,"",0.15,"",""]
[null,null,null,null,null,null,null,null,null,null,null,null,"",0.15,"",""]
[null,null,null,null,null,null,null,null,null,null,null,null,"",0.15,"",""]
[null,null,null,null,null,null,null,null,null,null,null,null,null,0.15,"",""]
[null,null,null,null,null,null,null,null,null,null,null,null,null,0.15,"",""]
[null,null,null,null,null,null,null,null,null,null,null,null,null,0.15,"",""]
[null,null,null,null,null,null,null,null,null,null,null,null,null,0.15,"",""]
[null,null,null,null,null,null,null,null,null,null,null,null,null,0.15,"",""]
[null,null,null,null,null,null,null,null,null,null,null,null,null,0.15,"",""]
[null,null,null,null,null,null,null,null,null,null,null,null,null,0.15,"",""]
[null,null,null,null,null,null,null,null,null,null,null,null,null,0.15,"",""]
[null,null,null,null,null,null,null,null,null,null,null,null,null,0.15,"",""]
[null,null,null,null,null,null,null,null,null,null,null,null,null,0.15,"",""]
[null,null,null,null,null,null,null,null,null,null,null,null,null,0.15,"",""]
[null,null,null,null,null,null,null,null,null,null,null,null,null,0.15,"",""]
[null,null,null,null,null,null,null,null,null,null,null,null,null,0.15,"",""]
[null,null,null,null,null,null,null,null,null,null,null,null,null,0.15,"",""]
[null,null,null,null,null,null,null,null,null,null,null,null,null,0.15,"",""]
[null,null,null,null,null,null,null,null,null,null,null,null,null,0.15,"",""]
[null,null,null,null,null,null,null,null,null,null,null,null,null,0.15,"",""]
[null,null,null,null,null,null,null,null,null,null,null,null,null,0.15,"",""]
[null,null,null,null,null,null,null,null,null,null,null,null,null,0.15,"",""]
[null,null,null,null,null,null,null,null,null,null,null,null,null,0.15,"",""]
[null,null,null,null,null,null,null,null,null,null,null,null,null,0.15,"",""]
[null,null,null,null,null,null,null,null,null,null,null,null,null,0.15,"",""]
[null,null,null,null,null,null,null,null,null,null,null,null,null,0.15,"",""]
[null,null,null,null,null,null,null,null,null,null,null,null,null,0.15,"",""]
[null,null,null,null,null,null,null,null,null,null,null,null,null,0.15,"",""]
[null,null,null,null,null,null,null,null,null,null,null,null,null,0.15,"",""]
[null,null,null,null,null,null,null,null,null,null,null,null,null,0.15,"",""]
[null,null,null,null,null,null,null,null,null,null,null,null,null,0.15,"",""]
[null,null,null,null,null,null,null,null,null,null,null,null,null,0.15,"",""]
[null,null,null,null,null,null,null,null,null,null,null,null,null,0.15,"",""]
[null,null,null,null,null,null,null,null,null,null,null,null,null,0.15,"",""]
[null,null,null,null,null,null,null,null,null,null,null,null,null,0.15,"",""]
[null,null,null,null,null,null,null,null,null,null,null,null,null,0.15,"",""]
[null,null,null,null,null,null,null,null,null,null,null,null,null,0.15,"",""]
[null,null,null,null,null,null,null,null,null,null,null,null,null,0.15,"",""]
[null,null,null,null,null,null,null,null,null,null,null,null,null,0.15,"",""]
[null,null,null,null,null,null,null,null,null,null,null,null,null,0.15,"",""]
[null,null,null,null,null,null,null,null,null,null,null,null,null,0.15,"",""]
[null,null,null,null,null,null,null,null,null,null,null,null,null,0.15,"",""]
[null,null,null,null,null,null,null,null,null,null,null,null,null,0.15,"",""]
[null,null,null,null,null,null,null,null,null,null,null,null,null,0.15,{"$f":"IF(M68=\"\",\"\",M68*N68)","v":""},{"$f":"IF(M68=\"\",\"\",M68-O68)","v":""}]
[null,null,null,null,null,null,null,null,null,null,null,null,null,0.15,"",""]
[null,null,null,null,null,null,null,null,null,null,null,null,null,0.15,"",""]
[null,null,null,null,null,null,null,null,null,null,null,null,null,0.15,"",""]
[null,null,null,null,null,null,null,null,null,null,null,null,null,0.15,"",""]
[null,null,null,null,null,null,null,null,null,null,null,null,null,0.15,"",""]
[null,null,null,null,null,null,null,null,null,null,null,null,null,0.15,"",""]
[null,null,null,null,null,null,null,null,null,null,null,null,null,0.15,"",""]
[null,null,null,null,null,null,null,null,null,null,null,null,null,0.15,"",""]
[null,null,null,null,null,null,null,null,null,null,null,null,null,0.15,"",""]
[null,null,null,null,null,null,null,null,null,null,null,null,null,0.15,"",""]
[null,null,null,null,null,null,null,null,null,null,null,null,null,0.15,"",""]
[null,null,null,null,null,null,null,null,null,null,null,null,null,0.15,"",""]
[null,null,null,null,null,null,null,null,null,null,null,null,null,0.15,"",""]
[null,null,null,null,null,null,null,null,null,null,null,null,null,0.15,"",""]
[null,null,null,null,null,null,null,null,null,null,null,null,null,0.15,"",""]
[null,null,null,null,null,null,null,null,null,null,null,null,null,0.15,"",""]
[null,null,null,null,null,null,null,null,null,null,null,null,null,0.15,"",""]
[null,null,null,null,null,null,null,null,null,null,null,null,null,0.15,"",""]
[null,null,null,null,null,null,null,null,null,null,null,null,null,0.15,"",""]
[null,null,null,null,null,null,null,null,null,null,null,null,null,0.15,"",""]
[null,null,null,null,null,null,null,null,null,null,null,null,null,0.15,"",""]
[null,null,null,null,null,null,null,null,null,null,null,null,null,0.15,"",""]
[null,null,null,null,null,null,null,null,null,null,null,null,null,0.15,"",""]
[null,null,null,null,null,null,null,null,null,null,null,null,null,0.15,"",""]
[null,null,null,null,null,null,null,null,null,null,null,null,null,0.15,"",""]
[null,null,null,null,null,null,null,null,null,null,null,null,null,0.15,"",""]
[null,null,null,null,null,null,null,null,null,null,null,null,null,0.15,"",""]
[null,null,null,null,null,null,null,null,null,null,null,null,null,0.15,"",""]
[null,null,null,null,null,null,null,null,null,null,null,null,null,0.15,"",""]
[null,null,null,null,null,null,null,null,null,null,null,null,null,0.15,"",""]
[null,null,null,null,null,null,null,null,null,null,null,null,null,0.15,"",""]
[null,null,null,null,null,null,null,null,null,null,null,null,null,0.15,"",""]
[null,null,null,null,null,null,null,null,null,null,null,null,null,0.15,"",""]
[null,null,null,null,null,null,null,null,null,null,null,null,null,0.15,"",""]
[null,null,null,null,null,null,null,null,null,null,null,null,null,0.15,"",""]
[null,null,null,null,null,null,null,null,null,null,null,null,null,0.15,"",""]
[null,null,null,null,null,null,null,null,null,null,null,null,null,0.15,"",""]
[null,null,null,null,null,null,null,null,null,null,null,null,null,0.15,"",""]
[null,null,null,null,null,null,null,null,null,null,null,null,null,0.15,"",""]
[null,null,null,null,null,null,null,null,null,null,null,null,null,0.15,"",""]
[null,null,null,null,null,null,null,null,null,null,null,null,null,0.15,"",""]
[null,null,null,null,null,null,null,null,null,null,null,null,null,0.15,"",""]
[null,null,null,null,null,null,null,null,null,null,null,null,null,0.15,"",""]
[null,null,null,null,null,null,null,null,null,null,null,null,null,0.15,"",""]
[null,null,null,null,null,null,null,null,null,null,null,null,null,0.15,"",""]
[null,null,null,null,null,null,null,null,null,null,null,null,null,0.15,"",""]
[null,null,null,null,null,null,null,null,null,null,null,null,null,0.15,"",""]
[null,null,null,null,null,null,null,null,null,null,null,null,null,0.15,"",""]
[null,null,null,null,null,null,null,null,null,null,null,null,null,0.15,"",""]
[null,null,null,null,null,null,null,null,null,null,null,null,null,0.15,"",""]
[null,null,null,null,null,null,null,null,null,null,null,null,null,0.15,"",""]
[null,null,null,null,null,null,null,null,null,null,null,null,null,0.15,"",""]
[null,null,null,null,null,null,null,null,null,null,null,null,null,0.15,"",""]
[null,null,null,null,null,null,null,null,null,null,null,null,null,0.15,"",""]
[null,null,null,null,null,null,null,null,null,null,null,null,null,0.15,"",""]
[null,null,null,null,null,null,null,null,null,null,null,null,null,0.15,"",""]
[null,null,null,null,null,null,null,null,null,null,null,null,null,0.15,"",""]
[null,null,null,null,null,null,null,null,null,null,null,null,null,0.15,"",""]
[null,null,null,null,null,null,null,null,null,null,null,null,null,0.15,"",""]
[null,null,null,null,null,null,null,null,null,null,null,null,null,0.15,"",""]
[null,null,null,null,null,null,null,null,null,null,null,null,null,0.15,"",""]
[null,null,null,null,null,null,null,null,null,null,null,null,null,0.15,"",""]
[null,null,null,null,null,null,null,null,null,null,null,null,null,0.15,"",""]
[null,null,null,null,null,null,null,null,null,null,null,null,null,0.15,{"$f":"IF(M132=\"\",\"\",M132*N132)","v":""},{"$f":"IF(M132=\"\",\"\",M132-O132)","v":""}]
[null,null,null,null,null,null,null,null,null,null,null,null,null,0.15,"",""]
[null,null,null,null,null,null,null,null,null,null,null,null,null,0.15,"",""]
[null,null,null,null,null,null,null,null,null,null,null,null,null,0.15,"",""]
[null,null,null,null,null,null,null,null,null,null,null,null,null,0.15,"",""]
[null,null,null,null,null,null,null,null,null,null,null,null,null,0.15,"",""]
[null,null,null,null,null,null,null,null,null,null,null,null,null,0.15,"",""]
[null,null,null,null,null,null,null,null,null,null,null,null,null,0.15,"",""]
[null,null,null,null,null,null,null,null,null,null,null,null,null,0.15,"",""]
[null,null,null,null,null,null,null,null,null,null,null,null,null,0.15,"",""]
[null,null,null,null,null,null,null,null,null,null,null,null,null,0.15,"",""]
[null,null,null,null,null,null,null,null,null,null,null,null,null,0.15,"",""]
[null,null,null,null,null,null,null,null,null,null,null,null,null,0.15,"",""]
[null,null,null,null,null,null,null,null,null,null,null,null,null,0.15,"",""]
[null,null,null,null,null,null,null,null,null,null,null,null,null,0.15,"",""]
[null,null,null,null,null,null,null,null,null,null,null,null,null,0.15,"",""]
[null,null,null,null,null,null,null,null,null,null,null,null,null,0.15,"",""]
[null,null,null,null,null,null,null,null,null,null,null,null,null,0.15,"",""]
[null,null,null,null,null,null,null,null,null,null,null,null,null,0.15,"",""]
[null,null,null,null,null,null,null,null,null,null,null,null,null,0.15,"",""]
[null,null,null,null,null,null,null,null,null,null,null,null,null,0.15,"",""]
[null,null,null,null,null,null,null,null,null,null,null,null,null,0.15,"",""]
[null,null,null,null,null,null,null,null,null,null,null,null,null,0.15,"",""]
[null,null,null,null,null,null,null,null,null,null,null,null,null,0.15,"",""]
[null,null,null,null,null,null,null,null,null,null,null,null,null,0.15,"",""]
[null,null,null,null,null,null,null,null,null,null,null,null,null,0.15,"",""]
[null,null,null,null,null,null,null,null,null,null,null,null,null,0.15,"",""]
[null,null,null,null,null,null,null,null,null,null,null,null,null,0.15,"",""]
[null,null,null,null,null,null,null,null,null,null,null,null,null,0.15,"",""]
[null,null,null,null,null,null,null,null,null,null,null,null,null,0.15,"",""]
[null,null,null,null,null,null,null,null,null,null,null,null,null,0.15,"",""]
[null,null,null,null,null,null,null,null,null,null,null,null,null,0.15,"",""]
[null,null,null,null,null,null,null,null,null,null,null,null,null,0.15,"",""]
[null,null,null,null,null,null,null,null,null,null,null,null,null,0.15,"",""]
[null,null,null,null,null,null,null,null,null,null,null,null,null,0.15,"",""]
[null,null,null,null,null,null,null,null,null,null,null,null,null,0.15,"",""]
[null,null,null,null,null,null,null,null,null,null,null,null,null,0.15,"",""]
[null,null,null,null,null,null,null,null,null,null,null,null,null,0.15,"",""]
[null,null,null,null,null,null,null,null,null,null,null,null,null,0.15,"",""]
[null,null,null,null,null,null,null,null,null,null,null,null,null,0.15,"",""]
[null,null,null,null,null,null,null,null,null,null,null,null,null,0.15,"",""]
[null,null,null,null,null,null,null,null,null,null,null,null,null,0.15,"",""]
[null,null,null,null,null,null,null,null,null,null,null,null,null,0.15,"",""]
[null,null,null,null,null,null,null,null,null,null,null,null,null,0.15,"",""]
[null,null,null,null,null,null,null,null,null,null,null,null,null,0.15,"",""]
[null,null,null,null,null,null,null,null,null,null,null,null,null,0.15,"",""]
[null,null,null,null,null,null,null,null,null,null,null,null,null,0.15,"",""]
[null,null,null,null,null,null,null,null,null,null,null,null,null,0.15,"",""]
[null,null,null,null,null,null,null,null,null,null,null,null,null,0.15,"",""]
[null,null,null,null,null,null,null,null,null,null,null,null,null,0.15,"",""]
[null,null,null,null,null,null,null,null,null,null,null,null,null,0.15,"",""]
[null,null,null,null,null,null,null,null,null,null,null,null,null,0.15,"",""]
[null,null,null,null,null,null,null,null,null,null,null,null,null,0.15,"",""]
[null,null,null,null,null,null,null,null,null,null,null,null,null,0.15,"",""]
[null,null,null,null,null,null,null,null,null,null,null,null,null,0.15,"",""]
[null,null,null,null,null,null,null,null,null,null,null,null,null,0.15,"",""]
[null,null,null,null,null,null,null,null,null,null,null,null,null,0.15,"",""]
[null,null,null,null,null,null,null,null,null,null,null,null,null,0.15,"",""]
[null,null,null,null,null,null,null,null,null,null,null,null,null,0.15,"",""]
[null,null,null,null,null,null,null,null,null,null,null,null,null,0.15,"",""]
[null,null,null,null,null,null,null,null,null,null,null,null,null,0.15,"",""]
[null,null,null,null,null,null,null,null,null,null,null,null,null,0.15,"",""]
[null,null,null,null,null,null,null,null,null,null,null,null,null,0.15,"",""]
[null,null,null,null,null,null,null,null,null,null,null,null,null,0.15,"",""]
[null,null,null,null,null,null,null,null,null,null,null,null,null,0.15,{"$f":"IF(M196=\"\",\"\",M196*N196)","v":""},{"$f":"IF(M196=\"\",\"\",M196-O196)","v":""}]
[null,null,null,null,null,null,null,null,null,null,null,null,null,0.15,"",""]
[null,null,null,null,null,null,null,null,null,null,null,null,null,0.15,"",""]
[null,null,null,null,null,null,null,null,null,null,null,null,null,0.15,"",""]
[null,null,null,null,null,null,null,null,null,null,null,null,null,0.15,"",""]
[null,null,null,null,null,null,null,null,null,null,null,null,null,0.15,"",""]
[null,null,null,null,null,null,null,null,null,null,null,null,null,0.15,"",""]
[null,null,null,null,null,null,null,null,null,null,null,null,null,0.15,"",""]
[null,null,null,null,null,null,null,null,null,null,null,null,null,0.15,"",""]
[null,null,null,null,null,null,null,null,null,null,null,null,null,0.15,"",""]
[null,null,null,null,null,null,null,null,null,null,null,null,null,0.15,"",""]
[null,null,null,null,null,null,null,null,null,null,null,null,null,0.15,"",""]
[null,null,null,null,null,null,null,null,null,null,null,null,null,0.15,"",""]
[null,null,null,null,null,null,null,null,null,null,null,null,null,0.15,"",""]
[null,null,null,null,null,null,null,null,null,null,null,null,null,0.15,"",""]
[null,null,null,null,null,null,null,null,null,null,null,null,null,0.15,"",""]
[null,null,null,null,null,null,null,null,null,null,null,null,null,0.15,"",""]
[null,null,null,null,null,null,null,null,null,null,null,null,null,0.15,"",""]
[null,null,null,null,null,null,null,null,null,null,null,null,null,0.15,"",""]
[null,null,null,null,null,null,null,null,null,null,null,null,null,0.15,"",""]
[null,null,null,null,null,null,null,null,null,null,null,null,null,0.15,"",""]
[null,null,null,null,null,null,null,null,null,null,null,null,null,0.15,"",""]
[null,null,null,null,null,null,null,null,null,null,null,null,null,0.15,"",""]
[null,null,null,null,null,null,null,null,null,null,null,null,null,0.15,"",""]
[null,null,null,null,null,null,null,null,null,null,null,null,null,0.15,"",""]
[null,null,null,null,null,null,null,null,null,null,null,null,null,0.15,"",""]
[null,null,null,null,null,null,null,null,null,null,null,null,null,0.15,"",""]
[null,null,null,null,null,null,null,null,null,null,null,null,null,0.15,"",""]
[null,null,null,null,null,null,null,null,null,null,null,null,null,0.15,"",""]
[null,null,null,null,null,null,null,null,null,null,null,null,null,0.15,"",""]
[null,null,null,null,null,null,null,null,null,null,null,null,null,0.15,"",""]
[null,null,null,null,null,null,null,null,null,null,null,null,null,0.15,"",""]
[null,null,null,null,null,null,null,null,null,null,null,null,null,0.15,"",""]
[null,null,null,null,null,null,null,null,null,null,null,null,null,0.15,"",""]
[null,null,null,null,null,null,null,null,null,null,null,null,null,0.15,"",""]
[null,null,null,null,null,null,null,null,null,null,null,null,null,0.15,"",""]
[null,null,null,null,null,null,null,null,null,null,null,null,null,0.15,"",""]
[null,null,null,null,null,null,null,null,null,null,null,null,null,0.15,"",""]
[null,null,null,null,null,null,null,null,null,null,null,null,null,0.15,"",""]
[null,null,null,null,null,null,null,null,null,null,null,null,null,0.15,"",""]
[null,null,null,null,null,null,null,null,null,null,null,null,null,0.15,"",""]
[null,null,null,null,null,null,null,null,null,null,null,null,null,0.15,"",""]
[null,null,null,null,null,null,null,null,null,null,null,null,null,0.15,"",""]
[null,null,null,null,null,null,null,null,null,null,null,null,null,0.15,"",""]
[null,null,null,null,null,null,null,null,null,null,null,null,null,0.15,"",""]
[null,null,null,null,null,null,null,null,null,null,null,null,null,0.15,"",""]
[null,null,null,null,null,null,null,null,null,null,null,null,null,0.15,"",""]
[null,null,null,null,null,null,null,null,null,null,null,null,null,0.15,"",""]
[null,null,null,null,null,null,null,null,null,null,null,null,null,0.15,"",""]
[null,null,null,null,null,null,null,null,null,null,null,null,null,0.15,"",""]
[null,null,null,null,null,null,null,null,null,null,null,null,null,0.15,"",""]
[null,null,null,null,null,null,null,null,null,null,null,null,null,0.15,"",""]
[null,null,null,null,null,null,null,null,null,null,null,null,null,0.15,"",""]
[null,null,null,null,null,null,null,null,null,null,null,null,null,0.15,"",""]
[null,null,null,null,null,null,null,null,null,null,null,null,null,0.15,"",""]
[null,null,null,null,null,null,null,null,null,null,null,null,null,0.15,"",""]
[null,null,null,null,null,null,null,null,null,null,null,null,null,0.15,"",""]
[null,null,null,null,null,null,null,null,null,null,null,null,null,0.15,"",""]
[null,null,null,null,null,null,null,null,null,null,null,null,null,0.15,"",""]
[null,null,null,null,null,null,null,null,null,null,null,null,null,0.15,"",""]
[null,null,null,null,null,null,null,null,null,null,null,null,null,0.15,"",""]
[null,null,null,null,null,null,null,null,null,null,null,null,null,0.15,"",""]
[null,null,null,null,null,null,null,null,null,null,null,null,null,0.15,"",""]
[null,null,null,null,null,null,null,null,null,null,null,null,null,0.15,"",""]
[null,null,null,null,null,null,null,null,null,null,null,null,null,0.15,{"$f":"IF(M260=\"\",\"\",M260*N260)","v":""},{"$f":"IF(M260=\"\",\"\",M260-O260)","v":""}]
[null,null,null,null,null,null,null,null,null,null,null,null,null,0.15,"",""]
[null,null,null,null,null,null,null,null,null,null,null,null,null,0.15,"",""]
[null,null,null,null,null,null,null,null,null,null,null,null,null,0.15,"",""]
[null,null,null,null,null,null,null,null,null,null,null,null,null,0.15,"",""]
[null,null,null,null,null,null,null,null,null,null,null,null,null,0.15,"",""]
[null,null,null,null,null,null,null,null,null,null,null,null,null,0.15,"",""]
[null,null,null,null,null,null,null,null,null,null,null,null,null,0.15,"",""]
[null,null,null,null,null,null,null,null,null,null,null,null,null,0.15,"",""]
[null,null,null,null,null,null,null,null,null,null,null,null,null,0.15,"",""]
[null,null,null,null,null,null,null,null,null,null,null,null,null,0.15,"",""]
[null,null,null,null,null,null,null,null,null,null,null,null,null,0.15,"",""]
[null,null,null,null,null,null,null,null,null,null,null,null,null,0.15,"",""]
[null,null,null,null,null,null,null,null,null,null,null,null,null,0.15,"",""]
[null,null,null,null,null,null,null,null,null,null,null,null,null,0.15,"",""]
[null,null,null,null,null,null,null,null,null,null,null,null,null,0.15,"",""]
[null,null,null,null,null,null,null,null,null,null,null,null,null,0.15,"",""]
[null,null,null,null,null,null,null,null,null,null,null,null,null,0.15,"",""]
[null,null,null,null,null,null,null,null,null,null,null,null,null,0.15,"",""]
[null,null,null,null,null,null,null,null,null,null,null,null,null,0.15,"",""]
[null,null,null,null,null,null,null,null,null,null,null,null,null,0.15,"",""]
[null,null,null,null,null,null,null,null,null,null,null,null,null,0.15,"",""]
[null,null,null,null,null,null,null,null,null,null,null,null,null,0.15,"",""]
[null,null,null,null,null,null,null,null,null,null,null,null,null,0.15,"",""]
[null,null,null,null,null,null,null,null,null,null,null,null,null,0.15,"",""]
[null,null,null,null,null,null,null,null,null,null,null,null,null,0.15,"",""]
[null,null,null,null,null,null,null,null,null,null,null,null,null,0.15,"",""]
[null,null,null,null,null,null,null,null,null,null,null,null,null,0.15,"",""]
[null,null,null,null,null,null,null,null,null,null,null,null,null,0.15,"",""]
[null,null,null,null,null,null,null,null,null,null,null,null,null,0.15,"",""]
[null,null,null,null,null,null,null,null,null,null,null,null,null,0.15,"",""]
[null,null,null,null,null,null,null,null,null,null,null,null,null,0.15,"",""]
[null,null,null,null,null,null,null,null,null,null,null,null,null,0.15,"",""]
[null,null,null,null,null,null,null,null,null,null,null,null,null,0.15,"",""]
[null,null,null,null,null,null,null,null,null,null,null,null,null,0.15,"",""]
[null,null,null,null,null,null,null,null,null,null,null,null,null,0.15,"",""]
[null,null,null,null,null,null,null,null,null,null,null,null,null,0.15,"",""]
[null,null,null,null,null,null,null,null,null,null,null,null,null,0.15,"",""]
[null,null,null,null,null,null,null,null,null,null,null,null,null,0.15,"",""]
[null,null,null,null,null,null,null,null,null,null,null,null,null,0.15,"",""]
[null,null,null,null,null,null,null,null,null,null,null,null,null,0.15,"",""]
[null,null,null,null,null,null,null,null,null,null,null,null,null,0.15,"",""]
[null,null,null,null,null,null,null,null,null,null,null,null,null,0.15,"",""]
[null,null,null,null,null,null,null,null,null,null,null,null,null,0.15,"",""]
[null,null,null,null,null,null,null,null,null,null,null,null,null,0.15,"",""]
[null,null,null,null,null,null,null,null,null,null,null,null,null,0.15,"",""]
[null,null,null,null,null,null,null,null,null,null,null,null,null,0.15,"",""]
[null,null,null,null,null,null,null,null,null,null,null,null,null,0.15,"",""]
[null,null,null,null,null,null,null,null,null,null,null,null,null,0.15,"",""]
[null,null,null,null,null,null,null,null,null,null,null,null,null,0.15,"",""]
[null,null,null,null,null,null,null,null,null,null,null,null,null,0.15,"",""]
[null,null,null,null,null,null,null,null,null,null,null,null,null,0.15,"",""]
[null,null,null,null,null,null,null,null,null,null,null,null,null,0.15,"",""]
[null,null,null,null,null,null,null,null,null,null,null,null,null,0.15,"",""]
[null,null,null,null,null,null,null,null,null,null,null,null,null,0.15,"",""]
[null,null,null,null,null,null,null,null,null,null,null,null,null,0.15,"",""]
[null,null,null,null,null,null,null,null,null,null,null,null,null,0.15,"",""]
[null,null,null,null,null,null,null,null,null,null,null,null,null,0.15,"",""]
[null,null,null,null,null,null,null,null,null,null,null,null,null,0.15,"",""]
[null,null,null,null,null,null,null,null,null,null,null,null,null,0.15,"",""]
[null,null,null,null,null,null,null,null,null,null,null,null,null,0.15,"",""]
[null,null,null,null,null,null,null,null,null,null,null,null,null,0.15,"",""]
[null,null,null,null,null,null,null,null,null,null,null,null,null,0.15,"",""]
[null,null,null,null,null,null,null,null,null,null,null,null,null,0.15,"",""]
[null,null,null,null,null,null,null,null,null,null,null,null,null,0.15,{"$f":"IF(M324=\"\",\"\",M324*N324)","v":""},{"$f":"IF(M324=\"\",\"\",M324-O324)","v":""}]
[null,null,null,null,null,null,null,null,null,null,null,null,null,0.15,"",""]
[null,null,null,null,null,null,null,null,null,null,null,null,null,0.15,"",""]
[null,null,null,null,null,null,null,null,null,null,null,null,null,0.15,"",""]
[null,null,null,null,null,null,null,null,null,null,null,null,null,0.15,"",""]
[null,null,null,null,null,null,null,null,null,null,null,null,null,0.15,"",""]
[null,null,null,null,null,null,null,null,null,null,null,null,null,0.15,"",""]
[null,null,null,null,null,null,null,null,null,null,null,null,null,0.15,"",""]
[null,null,null,null,null,null,null,null,null,null,null,null,null,0.15,"",""]
[null,null,null,null,null,null,null,null,null,null,null,null,null,0.15,"",""]
[null,null,null,null,null,null,null,null,null,null,null,null,null,0.15,"",""]
[null,null,null,null,null,null,null,null,null,null,null,null,null,0.15,"",""]
[null,null,null,null,null,null,null,null,null,null,null,null,null,0.15,"",""]
[null,null,null,null,null,null,null,null,null,null,null,null,null,0.15,"",""]
[null,null,null,null,null,null,null,null,null,null,null,null,null,0.15,"",""]
[null,null,null,null,null,null,null,null,null,null,null,null,null,0.15,"",""]
[null,null,null,null,null,null,null,null,null,null,null,null,null,0.15,"",""]
[null,null,null,null,null,null,null,null,null,null,null,null,null,0.15,"",""]
[null,null,null,null,null,null,null,null,null,null,null,null,null,0.15,"",""]
[null,null,null,null,null,null,null,null,null,null,null,null,null,0.15,"",""]
[null,null,null,null,null,null,null,null,null,null,null,null,null,0.15,"",""]
[null,null,null,null,null,null,null,null,null,null,null,null,null,0.15,"",""]
[null,null,null,null,null,null,null,null,null,null,null,null,null,0.15,"",""]
[null,null,null,null,null,null,null,null,null,null,null,null,null,0.15,"",""]
[null,null,null,null,null,null,null,null,null,null,null,null,null,0.15,"",""]
[null,null,null,null,null,null,null,null,null,null,null,null,null,0.15,"",""]
[null,null,null,null,null,null,null,null,null,null,null,null,null,0.15,"",""]
[null,null,null,null,null,null,null,null,null,null,null,null,null,0.15,"",""]
[null,null,null,null,null,null,null,null,null,null,null,null,null,0.15,"",""]
[null,null,null,null,null,null,null,null,null,null,null,null,null,0.15,"",""]
[null,null,null,null,null,null,null,null,null,null,null,null,null,0.15,"",""]
[null,null,null,null,null,null,null,null,null,null,null,null,null,0.15,"",""]
[null,null,null,null,null,null,null,null,null,null,null,null,null,0.15,"",""]
[null,null,null,null,null,null,null,null,null,null,null,null,null,0.15,"",""]
[null,null,null,null,null,null,null,null,null,null,null,null,null,0.15,"",""]
[null,null,null,null,null,null,null,null,null,null,null,null,null,0.15,"",""]
[null,null,null,null,null,null,null,null,null,null,null,null,null,0.15,"",""]
[null,null,null,null,null,null,null,null,null,null,null,null,null,0.15,"",""]
[null,null,null,null,null,null,null,null,null,null,null,null,null,0.15,"",""]
[null,null,null,null,null,null,null,null,null,null,null,null,null,0.15,"",""]
[null,null,null,null,null,null,null,null,null,null,null,null,null,0.15,"",""]
[null,null,null,null,null,null,null,null,null,null,null,null,null,0.15,"",""]
[null,null,null,null,null,null,null,null,null,null,null,null,null,0.15,"",""]
[null,null,null,null,null,null,null,null,null,null,null,null,null,0.15,"",""]
[null,null,null,null,null,null,null,null,null,null,null,null,null,0.15,"",""]
[null,null,null,null,null,null,null,null,null,null,null,null,null,0.15,"",""]
[null,null,null,null,null,null,null,null,null,null,null,null,null,0.15,"",""]
[null,null,null,null,null,null,null,null,null,null,null,null,null,0.15,"",""]
[null,null,null,null,null,null,null,null,null,null,null,null,null,0.15,"",""]
[null,null,null,null,null,null,null,null,null,null,null,null,null,0.15,"",""]
[null,null,null,null,null,null,null,null,null,null,null,null,null,0.15,"",""]
[null,null,null,null,null,null,null,null,null,null,null,null,null,0.15,"",""]
[null,null,null,null,null,null,null,null,null,null,null,null,null,0.15,"",""]
[null,null,null,null,null,null,null,null,null,null,null,null,null,0.15,"",""]
[null,null,null,null,null,null,null,null,null,null,null,null,null,0.15,"",""]
[null,null,null,null,null,null,null,null,null,null,null,null,null,0.15,"",""]
[null,null,null,null,null,null,null,null,null,null,null,null,null,0.15,"",""]
[null,null,null,null,null,null,null,null,null,null,null,null,null,0.15,"",""]
[null,null,null,null,null,null,null,null,null,null,null,null,null,0.15,"",""]
[null,null,null,null,null,null,null,null,null,null,null,null,null,0.15,"",""]
[null,null,null,null,null,null,null,null,null,null,null,null,null,0.15,"",""]
[null,null,null,null,null,null,null,null,null,null,null,null,null,0.15,"",""]
[null,null,null,null,null,null,null,null,null,null,null,null,null,0.15,"",""]
[null,null,null,null,null,null,null,null,null,null,null,null,null,0.15,"",""]
[null,null,null,null,null,null,null,null,null,null,null,null,null,0.15,{"$f":"IF(M388=\"\",\"\",M388*N388)","v":""},{"$f":"IF(M388=\"\",\"\",M388-O388)","v":""}]
[null,null,null,null,null,null,null,null,null,null,null,null,null,0.15,"",""]
[null,null,null,null,null,null,null,null,null,null,null,null,null,0.15,"",""]
[null,null,null,null,null,null,null,null,null,null,null,null,null,0.15,"",""]
[null,null,null,null,null,null,null,null,null,null,null,null,null,0.15,"",""]
[null,null,null,null,null,null,null,null,null,null,null,null,null,0.15,"",""]
[null,null,null,null,null,null,null,null,null,null,null,null,null,0.15,"",""]
[null,null,null,null,null,null,null,null,null,null,null,null,null,0.15,"",""]
[null,null,null,null,null,null,null,null,null,null,null,null,null,0.15,"",""]
[null,null,null,null,null,null,null,null,null,null,null,null,null,0.15,"",""]
[null,null,null,null,null,null,null,null,null,null,null,null,null,0.15,"",""]
[null,null,null,null,null,null,null,null,null,null,null,null,null,0.15,"",""]
[null,null,null,null,null,null,null,null,null,null,null,null,null,0.15,"",""]
[null,null,null,null,null,null,null,null,null,null,null,null,null,0.15,"",""]
[null,null,null,null,null,null,null,null,null,null,null,null,null,0.15,"",""]
[null,null,null,null,null,null,null,null,null,null,null,null,null,0.15,"",""]
[null,null,null,null,null,null,null,null,null,null,null,null,null,0.15,"",""]
[null,null,null,null,null,null,null,null,null,null,null,null,null,0.15,"",""]
[null,null,null,null,null,null,null,null,null,null,null,null,null,0.15,"",""]
[null,null,null,null,null,null,null,null,null,null,null,null,null,0.15,"",""]
[null,null,null,null,null,null,null,null,null,null,null,null,null,0.15,"",""]
[null,null,null,null,null,null,null,null,null,null,null,null,null,0.15,"",""]
[null,null,null,null,null,null,null,null,null,null,null,null,null,0.15,"",""]
[null,null,null,null,null,null,null,null,null,null,null,null,null,0.15,"",""]
[null,null,null,null,null,null,null,null,null,null,null,null,null,0.15,"",""]
[null,null,null,null,null,null,null,null,null,null,null,null,null,0.15,"",""]
[null,null,null,null,null,null,null,null,null,null,null,null,null,0.15,"",""]
[null,null,null,null,null,null,null,null,null,null,null,null,null,0.15,"",""]
[null,null,null,null,null,null,null,null,null,null,null,null,null,0.15,"",""]
[null,null,null,null,null,null,null,null,null,null,null,null,null,0.15,"",""]
[null,null,null,null,null,null,null,null,null,null,null,null,null,0.15,"",""]
[null,null,null,null,null,null,null,null,null,null,null,null,null,0.15,"",""]
[null,null,null,null,null,null,null,null,null,null,null,null,null,0.15,"",""]
[null,null,null,null,null,null,null,null,null,null,null,null,null,0.15,"",""]
[null,null,null,null,null,null,null,null,null,null,null,null,null,0.15,"",""]
[null,null,null,null,null,null,null,null,null,null,null,null,null,0.15,"",""]
[null,null,null,null,null,null,null,null,null,null,null,null,null,0.15,"",""]
[null,null,null,null,null,null,null,null,null,null,null,null,null,0.15,"",""]
[null,null,null,null,null,null,null,null,null,null,null,null,null,0.15,"",""]
[null,null,null,null,null,null,null,null,null,null,null,null,null,0.15,"",""]
[null,null,null,null,null,null,null,null,null,null,null,null,null,0.15,"",""]
[null,null,null,null,null,null,null,null,null,null,null,null,null,0.15,"",""]
[null,null,null,null,null,null,null,null,null,null,null,null,null,0.15,"",""]
[null,null,null,null,null,null,null,null,null,null,null,null,null,0.15,"",""]
[null,null,null,null,null,null,null,null,null,null,null,null,null,0.15,"",""]
[null,null,null,null,null,null,null,null,null,null,null,null,null,0.15,"",""]
[null,null,null,null,null,null,null,null,null,null,null,null,null,0.15,"",""]
[null,null,null,null,null,null,null,null,null,null,null,null,null,0.15,"",""]
[null,null,null,null,null,null,null,null,null,null,null,null,null,0.15,"",""]
[null,null,null,null,null,null,null,null,null,null,null,null,null,0.15,"",""]
[null,null,null,null,null,null,null,null,null,null,null,null,null,0.15,"",""]
[null,null,null,null,null,null,null,null,null,null,null,null,null,0.15,"",""]
[null,null,null,null,null,null,null,null,null,null,null,null,null,0.15,"",""]
[null,null,null,null,null,null,null,null,null,null,null,null,null,0.15,"",""]
[null,null,null,null,null,null,null,null,null,null,null,null,null,0.15,"",""]
[null,null,null,null,null,null,null,null,null,null,null,null,null,0.15,"",""]
[null,null,null,null,null,null,null,null,null,null,null,null,null,0.15,"",""]
[null,null,null,null,null,null,null,null,null,null,null,null,null,0.15,"",""]
[null,null,null,null,null,null,null,null,null,null,null,null,null,0.15,"",""]
[null,null,null,null,null,null,null,null,null,null,null,null,null,0.15,"",""]
[null,null,null,null,null,null,null,null,null,null,null,null,null,0.15,"",""]
[null,null,null,null,null,null,null,null,null,null,null,null,null,0.15,"",""]
[null,null,null,null,null,null,null,null,null,null,null,null,null,0.15,"",""]
[null,null,null,null,null,null,null,null,null,null,null,null,null,0.15,"",""]
[null,null,null,null,null,null,null,null,null,null,null,null,null,0.15,{"$f":"IF(M452=\"\",\"\",M452*N452)","v":""},{"$f":"IF(M452=\"\",\"\",M452-O452)","v":""}]
[null,null,null,null,null,null,null,null,null,null,null,null,null,0.15,"",""]
[null,null,null,null,null,null,null,null,null,null,null,null,null,0.15,"",""]
[null,null,null,null,null,null,null,null,null,null,null,null,null,0.15,"",""]
[null,null,null,null,null,null,null,null,null,null,null,null,null,0.15,"",""]
[null,null,null,null,null,null,null,null,null,null,null,null,null,0.15,"",""]
[null,null,null,null,null,null,null,null,null,null,null,null,null,0.15,"",""]
[null,null,null,null,null,null,null,null,null,null,null,null,null,0.15,"",""]
[null,null,null,null,null,null,null,null,null,null,null,null,null,0.15,"",""]
[null,null,null,null,null,null,null,null,null,null,null,null,null,0.15,"",""]
[null,null,null,null,null,null,null,null,null,null,null,null,null,0.15,"",""]
[null,null,null,null,null,null,null,null,null,null,null,null,null,0.15,"",""]
[null,null,null,null,null,null,null,null,null,null,null,null,null,0.15,"",""]
[null,null,null,null,null,null,null,null,null,null,null,null,null,0.15,"",""]
[null,null,null,null,null,null,null,null,null,null,null,null,null,0.15,"",""]
[null,null,null,null,null,null,null,null,null,null,null,null,null,0.15,"",""]
[null,null,null,null,null,null,null,null,null,null,null,null,null,0.15,"",""]
[null,null,null,null,null,null,null,null,null,null,null,null,null,0.15,"",""]
[null,null,null,null,null,null,null,null,null,null,null,null,null,0.15,"",""]
[null,null,null,null,null,null,null,null,null,null,null,null,null,0.15,"",""]
[null,null,null,null,null,null,null,null,null,null,null,null,null,0.15,"",""]
[null,null,null,null,null,null,null,null,null,null,null,null,null,0.15,"",""]
[null,null,null,null,null,null,null,null,null,null,null,null,null,0.15,"",""]
[null,null,null,null,null,null,null,null,null,null,null,null,null,0.15,"",""]
[null,null,null,null,null,null,null,null,null,null,null,null,null,0.15,"",""]
[null,null,null,null,null,null,null,null,null,null,null,null,null,0.15,"",""]
[null,null,null,null,null,null,null,null,null,null,null,null,null,0.15,"",""]
[null,null,null,null,null,null,null,null,null,null,null,null,null,0.15,"",""]
[null,null,null,null,null,null,null,null,null,null,null,null,null,0.15,"",""]
[null,null,null,null,null,null,null,null,null,null,null,null,null,0.15,"",""]
[null,null,null,null,null,null,null,null,null,null,null,null,null,0.15,"",""]
[null,null,null,null,null,null,null,null,null,null,null,null,null,0.15,"",""]
[null,null,null,null,null,null,null,null,null,null,null,null,null,0.15,"",""]
[null,null,null,null,null,null,null,null,null,null,null,null,null,0.15,"",""]
[null,null,null,null,null,null,null,null,null,null,null,null,null,0.15,"",""]
[null,null,null,null,null,null,null,null,null,null,null,null,null,0.15,"",""]
[null,null,null,null,null,null,null,null,null,null,null,null,null,0.15,"",""]
[null,null,null,null,null,null,null,null,null,null,null,null,null,0.15,"",""]
[null,null,null,null,null,null,null,null,null,null,null,null,null,0.15,"",""]
[null,null,null,null,null,null,null,null,null,null,null,null,null,0.15,"",""]
[null,null,null,null,null,null,null,null,null,null,null,null,null,0.15,"",""]
[null,null,null,null,null,null,null,null,null,null,null,null,null,0.15,"",""]
[null,null,null,null,null,null,null,null,null,null,null,null,null,0.15,"",""]
[null,null,null,null,null,null,null,null,null,null,null,null,null,0.15,"",""]
[null,null,null,null,null,null,null,null,null,null,null,null,null,0.15,"",""]
[null,null,null,null,null,null,null,null,null,null,null,null,null,0.15,"",""]
[null,null,null,null,null,null,null,null,null,null,null,null,null,0.15,"",""]
[null,null,null,null,null,null,null,null,null,null,null,null,null,0.15,"",""]
[null,null,null,null,null,null,null,null,null,null,null,null,null,0.15,"",""]
[null,null,null,null,null,null,null,null,null,null,null,null,null,0.15,"",""]
[null,null,null,null,null,null,null,null,null,null,null,null,null,0.15,"",""]
[null,null,null,null,null,null,null,null,null,null,null,null,null,0.15,"",""]
[null,null,null,null,null,null,null,null,null,null,null,null,null,0.15,"",""]
[null,null,null,null,null,null,null,null,null,null,null,null,null,0.15,"",""]
[null,null,null,null,null,null,null,null,null,null,null,null,null,0.15,"",""]
[null,null,null,null,null,null,null,null,null,null,null,null,null,0.15,"",""]
[null,null,null,null,null,null,null,null,null,null,null,null,null,0.15,"",""]
[null,null,null,null,null,null,null,null,null,null,null,null,null,0.15,"",""]
[null,null,null,null,null,null,null,null,null,null,null,null,null,0.15,"",""]
[null,null,null,null,null,null,null,null,null,null,null,null,null,0.15,"",""]
[null,null,null,null,null,null,null,null,null,null,null,null,null,0.15,"",""]
[null,null,null,null,null,null,null,null,null,null,null,null,null,0.15,"",""]
[null,null,null,null,null,null,null,null,null,null,null,null,null,0.15,"",""]
[null,null,null,null,null,null,null,null,null,null,null,null,null,0.15,"",""]
[null,null,null,null,null,null,null,null,null,null,null,null,null,0.15,{"$f":"IF(M516=\"\",\"\",M516*N516)","v":""},{"$f":"IF(M516=\"\",\"\",M516-O516)","v":""}]
[null,null,null,null,null,null,null,null,null,null,null,null,null,0.15,"",""]
[null,null,null,null,null,null,null,null,null,null,null,null,null,0.15,"",""]
[null,null,null,null,null,null,null,null,null,null,null,null,null,0.15,"",""]
[null,null,null,null,null,null,null,null,null,null,null,null,null,0.15,"",""]
[null,null,null,null,null,null,null,null,null,null,null,null,null,0.15,"",""]
[null,null,null,null,null,null,null,null,null,null,null,null,null,0.15,"",""]
[null,null,null,null,null,null,null,null,null,null,null,null,null,0.15,"",""]
[null,null,null,null,null,null,null,null,null,null,null,null,null,0.15,"",""]
[null,null,null,null,null,null,null,null,null,null,null,null,null,0.15,"",""]
[null,null,null,null,null,null,null,null,null,null,null,null,null,0.15,"",""]
[null,null,null,null,null,null,null,null,null,null,null,null,null,0.15,"",""]
[null,null,null,null,null,null,null,null,null,null,null,null,null,0.15,"",""]
[null,null,null,null,null,null,null,null,null,null,null,null,null,0.15,"",""]
[null,null,null,null,null,null,null,null,null,null,null,null,null,0.15,"",""]
[null,null,null,null,null,null,null,null,null,null,null,null,null,0.15,"",""]
[null,null,null,null,null,null,null,null,null,null,null,null,null,0.15,"",""]
[null,null,null,null,null,null,null,null,null,null,null,null,null,0.15,"",""]
[null,null,null,null,null,null,null,null,null,null,null,null,null,0.15,"",""]
[null,null,null,null,null,null,null,null,null,null,null,null,null,0.15,"",""]
[null,null,null,null,null,null,null,null,null,null,null,null,null,0.15,"",""]
[null,null,null,null,null,null,null,null,null,null,null,null,null,0.15,"",""]
[null,null,null,null,null,null,null,null,null,null,null,null,null,0.15,"",""]
[null,null,null,null,null,null,null,null,null,null,null,null,null,0.15,"",""]
[null,null,null,null,null,null,null,null,null,null,null,null,null,0.15,"",""]
[null,null,null,null,null,null,null,null,null,null,null,null,null,0.15,"",""]
[null,null,null,null,null,null,null,null,null,null,null,null,null,0.15,"",""]
[null,null,null,null,null,null,null,null,null,null,null,null,null,0.15,"",""]
[null,null,null,null,null,null,null,null,null,null,null,null,null,0.15,"",""]
[null,null,null,null,null,null,null,null,null,null,null,null,null,0.15,"",""]
[null,null,null,null,null,null,null,null,null,null,null,null,null,0.15,"",""]
[null,null,null,null,null,null,null,null,null,null,null,null,null,0.15,"",""]
[null,null,null,null,null,null,null,null,null,null,null,null,null,0.15,"",""]
[null,null,null,null,null,null,null,null,null,null,null,null,null,0.15,"",""]
[null,null,null,null,null,null,null,null,null,null,null,null,null,0.15,"",""]
[null,null,null,null,null,null,null,null,null,null,null,null,null,0.15,"",""]
[null,null,null,null,null,null,null,null,null,null,null,null,null,0.15,"",""]
[null,null,null,null,null,null,null,null,null,null,null,null,null,0.15,"",""]
[null,null,null,null,null,null,null,null,null,null,null,null,null,0.15,"",""]
[null,null,null,null,null,null,null,null,null,null,null,null,null,0.15,"",""]
[null,null,null,null,null,null,null,null,null,null,null,null,null,0.15,"",""]
[null,null,null,null,null,null,null,null,null,null,null,null,null,0.15,"",""]
[null,null,null,null,null,null,null,null,null,null,null,null,null,0.15,"",""]
[null,null,null,null,null,null,null,null,null,null,null,null,null,0.15,"",""]
[null,null,null,null,null,null,null,null,null,null,null,null,null,0.15,"",""]
[null,null,null,null,null,null,null,null,null,null,null,null,null,0.15,"",""]
[null,null,null,null,null,null,null,null,null,null,null,null,null,0.15,"",""]
[null,null,null,null,null,null,null,null,null,null,null,null,null,0.15,"",""]
[null,null,null,null,null,null,null,null,null,null,null,null,null,0.15,"",""]
[null,null,null,null,null,null,null,null,null,null,null,null,null,0.15,"",""]
[null,null,null,null,null,null,null,null,null,null,null,null,null,0.15,"",""]
[null,null,null,null,null,null,null,null,null,null,null,null,null,0.15,"",""]
[null,null,null,null,null,null,null,null,null,null,null,null,null,0.15,"",""]
[null,null,null,null,null,null,null,null,null,null,null,null,null,0.15,"",""]
[null,null,null,null,null,null,null,null,null,null,null,null,null,0.15,"",""]
[null,null,null,null,null,null,null,null,null,null,null,null,null,0.15,"",""]
[null,null,null,null,null,null,null,null,null,null,null,null,null,0.15,"",""]
[null,null,null,null,null,null,null,null,null,null,null,null,null,0.15,"",""]
[null,null,null,null,null,null,null,null,null,null,null,null,null,0.15,"",""]
[null,null,null,null,null,null,null,null,null,null,null,null,null,0.15,"",""]
[null,null,null,null,null,null,null,null,null,null,null,null,null,0.15,"",""]
[null,null,null,null,null,null,null,null,null,null,null,null,null,0.15,"",""]
[null,null,null,null,null,null,null,null,null,null,null,null,null,0.15,"",""]
[null,null,null,null,null,null,null,null,null,null,null,null,null,0.15,"",""]
[null,null,null,null,null,null,null,null,null,null,null,null,null,0.15,{"$f":"IF(M580=\"\",\"\",M580*N580)","v":""},{"$f":"IF(M580=\"\",\"\",M580-O580)","v":""}]
[null,null,null,null,null,null,null,null,null,null,null,null,null,0.15,"",""]
[null,null,null,null,null,null,null,null,null,null,null,null,null,0.15,"",""]
[null,null,null,null,null,null,null,null,null,null,null,null,null,0.15,"",""]
[null,null,null,null,null,null,null,null,null,null,null,null,null,0.15,"",""]
[null,null,null,null,null,null,null,null,null,null,null,null,null,0.15,"",""]
[null,null,null,null,null,null,null,null,null,null,null,null,null,0.15,"",""]
[null,null,null,null,null,null,null,null,null,null,null,null,null,0.15,"",""]
[null,null,null,null,null,null,null,null,null,null,null,null,null,0.15,"",""]
[null,null,null,null,null,null,null,null,null,null,null,null,null,0.15,"",""]
[null,null,null,null,null,null,null,null,null,null,null,null,null,0.15,"",""]
[null,null,null,null,null,null,null,null,null,null,null,null,null,0.15,"",""]
[null,null,null,null,null,null,null,null,null,null,null,null,null,0.15,"",""]
[null,null,null,null,null,null,null,null,null,null,null,null,null,0.15,"",""]
[null,null,null,null,null,null,null,null,null,null,null,null,null,0.15,"",""]
[null,null,null,null,null,null,null,null,null,null,null,null,null,0.15,"",""]
[null,null,null,null,null,null,null,null,null,null,null,null,null,0.15,"",""]
[null,null,null,null,null,null,null,null,null,null,null,null,null,0.15,"",""]
[null,null,null,null,null,null,null,null,null,null,null,null,null,0.15,"",""]
[null,null,null,null,null,null,null,null,null,null,null,null,null,0.15,"",""]
[null,null,null,null,null,null,null,null,null,null,null,null,null,0.15,"",""]
[null,null,null,null,null,null,null,null,null,null,null,null,null,0.15,"",""]
[null,null,null,null,null,null,null,null,null,null,null,null,null,0.15,"",""]
[null,null,null,null,null,null,null,null,null,null,null,null,null,0.15,"",""]
[null,null,null,null,null,null,null,null,null,null,null,null,null,0.15,"",""]
[null,null,null,null,null,null,null,null,null,null,null,null,null,0.15,"",""]
[null,null,null,null,null,null,null,null,null,null,null,null,null,0.15,"",""]
[null,null,null,null,null,null,null,null,null,null,null,null,null,0.15,"",""]
[null,null,null,null,null,null,null,null,null,null,null,null,null,0.15,"",""]
[null,null,null,null,null,null,null,null,null,null,null,null,null,0.15,"",""]
[null,null,null,null,null,null,null,null,null,null,null,null,null,0.15,"",""]
[null,null,null,null,null,null,null,null,null,null,null,null,null,0.15,"",""]
[null,null,null,null,null,null,null,null,null,null,null,null,null,0.15,"",""]
[null,null,null,null,null,null,null,null,null,null,null,null,null,0.15,"",""]
[null,null,null,null,null,null,null,null,null,null,null,null,null,0.15,"",""]
[null,null,null,null,null,null,null,null,null,null,null,null,null,0.15,"",""]
[null,null,null,null,null,null,null,null,null,null,null,null,null,0.15,"",""]
[null,null,null,null,null,null,null,null,null,null,null,null,null,0.15,"",""]
[null,null,null,null,null,null,null,null,null,null,null,null,null,0.15,"",""]
[null,null,null,null,null,null,null,null,null,null,null,null,null,0.15,"",""]
[null,null,null,null,null,null,null,null,null,null,null,null,null,0.15,"",""]
[null,null,null,null,null,null,null,null,null,null,null,null,null,0.15,"",""]
[null,null,null,null,null,null,null,null,null,null,null,null,null,0.15,"",""]
[null,null,null,null,null,null,null,null,null,null,null,null,null,0.15,"",""]
[null,null,null,null,null,null,null,null,null,null,null,null,null,0.15,"",""]
[null,null,null,null,null,null,null,null,null,null,null,null,null,0.15,"",""]
[null,null,null,null,null,null,null,null,null,null,null,null,null,0.15,"",""]
[null,null,null,null,null,null,null,null,null,null,null,null,null,0.15,"",""]
[null,null,null,null,null,null,null,null,null,null,null,null,null,0.15,"",""]
[null,null,null,null,null,null,null,null,null,null,null,null,null,0.15,"",""]
[null,null,null,null,null,null,null,null,null,null,null,null,null,0.15,"",""]
[null,null,null,null,null,null,null,null,null,null,null,null,null,0.15,"",""]
[null,null,null,null,null,null,null,null,null,null,null,null,null,0.15,"",""]
[null,null,null,null,null,null,null,null,null,null,null,null,null,0.15,"",""]
[null,null,null,null,null,null,null,null,null,null,null,null,null,0.15,"",""]
[null,null,null,null,null,null,null,null,null,null,null,null,null,0.15,"",""]
[null,null,null,null,null,null,null,null,null,null,null,null,null,0.15,"",""]
[null,null,null,null,null,null,null,null,null,null,null,null,null,0.15,"",""]
[null,null,null,null,null,null,null,null,null,null,null,null,null,0.15,"",""]
[null,null,null,null,null,null,null,null,null,null,null,null,null,0.15,"",""]
[null,null,null,null,null,null,null,null,null,null,null,null,null,0.15,"",""]
[null,null,null,null,null,null,null,null,null,null,null,null,null,0.15,"",""]
[null,null,null,null,null,null,null,null,null,null,null,null,null,0.15,"",""]
[null,null,null,null,null,null,null,null,null,null,null,null,null,0.15,"",""]
[null,null,null,null,null,null,null,null,null,null,null,null,null,0.15,{"$f":"IF(M644=\"\",\"\",M644*N644)","v":""},{"$f":"IF(M644=\"\",\"\",M644-O644)","v":""}]
[null,null,null,null,null,null,null,null,null,null,null,null,null,0.15,"",""]
[null,null,null,null,null,null,null,null,null,null,null,null,null,0.15,"",""]
[null,null,null,null,null,null,null,null,null,null,null,null,null,0.15,"",""]
[null,null,null,null,null,null,null,null,null,null,null,null,null,0.15,"",""]
[null,null,null,null,null,null,null,null,null,null,null,null,null,0.15,"",""]
[null,null,null,null,null,null,null,null,null,null,null,null,null,0.15,"",""]
[null,null,null,null,null,null,null,null,null,null,null,null,null,0.15,"",""]
[null,null,null,null,null,null,null,null,null,null,null,null,null,0.15,"",""]
[null,null,null,null,null,null,null,null,null,null,null,null,null,0.15,"",""]
[null,null,null,null,null,null,null,null,null,null,null,null,null,0.15,"",""]
[null,null,null,null,null,null,null,null,null,null,null,null,null,0.15,"",""]
[null,null,null,null,null,null,null,null,null,null,null,null,null,0.15,"",""]
[null,null,null,null,null,null,null,null,null,null,null,null,null,0.15,"",""]
[null,null,null,null,null,null,null,null,null,null,null,null,null,0.15,"",""]
[null,null,null,null,null,null,null,null,null,null,null,null,null,0.15,"",""]
[null,null,null,null,null,null,null,null,null,null,null,null,null,0.15,"",""]
[null,null,null,null,null,null,null,null,null,null,null,null,null,0.15,"",""]
[null,null,null,null,null,null,null,null,null,null,null,null,null,0.15,"",""]
[null,null,null,null,null,null,null,null,null,null,null,null,null,0.15,"",""]
[null,null,null,null,null,null,null,null,null,null,null,null,null,0.15,"",""]
[null,null,null,null,null,null,null,null,null,null,null,null,null,0.15,"",""]
[null,null,null,null,null,null,null,null,null,null,null,null,null,0.15,"",""]
[null,null,null,null,null,null,null,null,null,null,null,null,null,0.15,"",""]
[null,null,null,null,null,null,null,null,null,null,null,null,null,0.15,"",""]
[null,null,null,null,null,null,null,null,null,null,null,null,null,0.15,"",""]
[null,null,null,null,null,null,null,null,null,null,null,null,null,0.15,"",""]
[null,null,null,null,null,null,null,null,null,null,null,null,null,0.15,"",""]
[null,null,null,null,null,null,null,null,null,null,null,null,null,0.15,"",""]
[null,null,null,null,null,null,null,null,null,null,null,null,null,0.15,"",""]
[null,null,null,null,null,null,null,null,null,null,null,null,null,0.15,"",""]
[null,null,null,null,null,null,null,null,null,null,null,null,null,0.15,"",""]
[null,null,null,null,null,null,null,null,null,null,null,null,null,0.15,"",""]
[null,null,null,null,null,null,null,null,null,null,null,null,null,0.15,"",""]
[null,null,null,null,null,null,null,null,null,null,null,null,null,0.15,"",""]
[null,null,null,null,null,null,null,null,null,null,null,null,null,0.15,"",""]
[null,null,null,null,null,null,null,null,null,null,null,null,null,0.15,"",""]
[null,null,null,null,null,null,null,null,null,null,null,null,null,0.15,"",""]
[null,null,null,null,null,null,null,null,null,null,null,null,null,0.15,"",""]
[null,null,null,null,null,null,null,null,null,null,null,null,null,0.15,"",""]
[null,null,null,null,null,null,null,null,null,null,null,null,null,0.15,"",""]
[null,null,null,null,null,null,null,null,null,null,null,null,null,0.15,"",""]
[null,null,null,null,null,null,null,null,null,null,null,null,null,0.15,"",""]
[null,null,null,null,null,null,null,null,null,null,null,null,null,0.15,"",""]
[null,null,null,null,null,null,null,null,null,null,null,null,null,0.15,"",""]
[null,null,null,null,null,null,null,null,null,null,null,null,null,0.15,null,""]
[null,null,null,null,null,null,null,null,null,null,null,null,null,0.15,null,""]
[null,null,null,null,null,null,null,null,null,null,null,null,null,0.15,null,""]
[null,null,null,null,null,null,null,null,null,null,null,null,null,0.15,null,""]
[null,null,null,null,null,null,null,null,null,null,null,null,null,0.15,null,""]
[null,null,null,null,null,null,null,null,null,null,null,null,null,0.15,null,""]
[null,null,null,null,null,null,null,null,null,null,null,null,null,0.15,null,""]
[null,null,null,null,null,null,null,null,null,null,null,null,null,0.15,null,""]
[null,null,null,null,null,null,null,null,null,null,null,null,null,0.15,null,""]
[null,null,null,null,null,null,null,null,null,null,null,null,null,0.15,null,""]
[null,null,null,null,null,null,null,null,null,null,null,null,null,0.15,null,""]
[null,null,null,null,null,null,null,null,null,null,null,null,null,0.15,null,""]
[null,null,null,null,null,null,null,null,null,null,null,null,null,0.15,null,""]
[null,null,null,null,null,null,null,null,null,null,null,null,null,0.15,null,""]
[null,null,null,null,null,null,null,null,null,null,null,null,null,0.15,null,""]
[null,null,null,null,null,null,null,null,null,null,null,null,null,0.15,null,""]
[null,null,null,null,null,null,null,null,null,null,null,null,null,0.15,null,""]
[null,null,null,null,null,null,null,null,null,null,null,null,null,0.15,null,""]
[null,null,null,null,null,null,null,null,null,null,null,null,null,0.15,null,""]
[null,null,null,null,null,null,null,null,null,null,null,null,null,0.15,null,{"$f":"IF(M708=\"\",\"\",M708-O708)","v":""}]
[null,null,null,null,null,null,null,null,null,null,null,null,null,0.15,null,""]
[null,null,null,null,null,null,null,null,null,null,null,null,null,0.15,null,""]
[null,null,null,null,null,null,null,null,null,null,null,null,null,0.15,null,""]
[null,null,null,null,null,null,null,null,null,null,null,null,null,0.15,null,""]
[null,null,null,null,null,null,null,null,null,null,null,null,null,0.15,null,""]
[null,null,null,null,null,null,null,null,null,null,null,null,null,0.15,null,""]
[null,null,null,null,null,null,null,null,null,null,null,null,null,0.15,null,""]
[null,null,null,null,null,null,null,null,null,null,null,null,null,0.15,null,""]
[null,null,null,null,null,null,null,null,null,null,null,null,null,0.15,null,""]
[null,null,null,null,null,null,null,null,null,null,null,null,null,0.15,null,""]
[null,null,null,null,null,null,null,null,null,null,null,null,null,0.15,null,""]
[null,null,null,null,null,null,null,null,null,null,null,null,null,0.15,null,""]
[null,null,null,null,null,null,null,null,null,null,null,null,null,0.15,null,""]
[null,null,null,null,null,null,null,null,null,null,null,null,null,0.15,null,""]
[null,null,null,null,null,null,null,null,null,null,null,null,null,0.15,null,""]
[null,null,null,null,null,null,null,null,null,null,null,null,null,0.15,null,""]
[null,null,null,null,null,null,null,null,null,null,null,null,null,0.15,null,""]
[null,null,null,null,null,null,null,null,null,null,null,null,null,0.15,null,""]
[null,null,null,null,null,null,null,null,null,null,null,null,null,0.15,null,""]
[null,null,null,null,null,null,null,null,null,null,null,null,null,0.15,null,""]
[null,null,null,null,null,null,null,null,null,null,null,null,null,0.15,null,""]
[null,null,null,null,null,null,null,null,null,null,null,null,null,0.15,null,""]
[null,null,null,null,null,null,null,null,null,null,null,null,null,0.15,null,""]
[null,null,null,null,null,null,null,null,null,null,null,null,null,0.15,null,""]
[null,null,null,null,null,null,null,null,null,null,null,null,null,0.15,null,""]
[null,null,null,null,null,null,null,null,null,null,null,null,null,0.15,null,""]
[null,null,null,null,null,null,null,null,null,null,null,null,null,0.15,null,""]
[null,null,null,null,null,null,null,null,null,null,null,null,null,0.15,null,""]
[null,null,null,null,null,null,null,null,null,null,null,null,null,0.15,null,""]
[null,null,null,null,null,null,null,null,null,null,null,null,null,0.15,null,""]
[null,null,null,null,null,null,null,null,null,null,null,null,null,0.15,null,""]
[null,null,null,null,null,null,null,null,null,null,null,null,null,0.15,null,""]
[null,null,null,null,null,null,null,null,null,null,null,null,null,0.15,null,""]
[null,null,null,null,null,null,null,null,null,null,null,null,null,0.15,null,""]
[null,null,null,null,null,null,null,null,null,null,null,null,null,0.15,null,""]
[null,null,null,null,null,null,null,null,null,null,null,null,null,0.15,null,""]
[null,null,null,null,null,null,null,null,null,null,null,null,null,0.15,null,""]
[null,null,null,null,null,null,null,null,null,null,null,null,null,0.15,null,""]
[null,null,null,null,null,null,null,null,null,null,null,null,null,0.15,null,""]
[null,null,null,null,null,null,null,null,null,null,null,null,null,0.15,null,""]
[null,null,null,null,null,null,null,null,null,null,null,null,null,0.15,null,""]
[null,null,null,null,null,null,null,null,null,null,null,null,null,0.15,null,""]
[null,null,null,null,null,null,null,null,null,null,null,null,null,0.15,null,""]
[null,null,null,null,null,null,null,null,null,null,null,null,null,0.15,null,""]
[null,null,null,null,null,null,null,null,null,null,null,null,null,0.15,null,""]
[null,null,null,null,null,null,null,null,null,null,null,null,null,0.15,null,""]
[null,null,null,null,null,null,null,null,null,null,null,null,null,0.15,null,""]
[null,null,null,null,null,null,null,null,null,null,null,null,null,0.15,null,""]
[null,null,null,null,null,null,null,null,null,null,null,null,null,0.15,null,""]
[null,null,null,null,null,null,null,null,null,null,null,null,null,0.15,null,""]
[null,null,null,null,null,null,null,null,null,null,null,null,null,0.15,null,""]
[null,null,null,null,null,null,null,null,null,null,null,null,null,0.15,null,""]
[null,null,null,null,null,null,null,null,null,null,null,null,null,0.15,null,""]
[null,null,null,null,null,null,null,null,null,null,null,null,null,0.15,null,""]
[null,null,null,null,null,null,null,null,null,null,null,null,null,0.15,null,""]
[null,null,null,null,null,null,null,null,null,null,null,null,null,0.15,null,""]
[null,null,null,null,null,null,null,null,null,null,null,null,null,0.15,null,""]
[null,null,null,null,null,null,null,null,null,null,null,null,null,0.15,null,""]
[null,null,null,null,null,null,null,null,null,null,null,null,null,0.15,null,""]
[null,null,null,null,null,null,null,null,null,null,null,null,null,0.15,null,""]
[null,null,null,null,null,null,null,null,null,null,null,null,null,0.15,null,""]
[null,null,null,null,null,null,null,null,null,null,null,null,null,0.15,null,""]
[null,null,null,null,null,null,null,null,null,null,null,null,null,0.15,null,""]
[null,null,null,null,null,null,null,null,null,null,null,null,null,0.15,null,{"$f":"IF(M772=\"\",\"\",M772-O772)","v":""}]
[null,null,null,null,null,null,null,null,null,null,null,null,null,0.15,null,""]
[null,null,null,null,null,null,null,null,null,null,null,null,null,0.15,null,""]
[null,null,null,null,null,null,null,null,null,null,null,null,null,0.15,null,""]
[null,null,null,null,null,null,null,null,null,null,null,null,null,0.15,null,""]
[null,null,null,null,null,null,null,null,null,null,null,null,null,0.15,null,""]
[null,null,null,null,null,null,null,null,null,null,null,null,null,0.15,null,""]
[null,null,null,null,null,null,null,null,null,null,null,null,null,0.15,null,""]
[null,null,null,null,null,null,null,null,null,null,null,null,null,0.15,null,""]
[null,null,null,null,null,null,null,null,null,null,null,null,null,0.15,null,""]
[null,null,null,null,null,null,null,null,null,null,null,null,null,0.15,null,""]
[null,null,null,null,null,null,null,null,null,null,null,null,null,0.15,null,""]
[null,null,null,null,null,null,null,null,null,null,null,null,null,0.15,null,""]
[null,null,null,null,null,null,null,null,null,null,null,null,null,0.15,null,""]
[null,null,null,null,null,null,null,null,null,null,null,null,null,0.15,null,""]
[null,null,null,null,null,null,null,null,null,null,null,null,null,0.15,null,""]
[null,null,null,null,null,null,null,null,null,null,null,null,null,0.15,null,""]
[null,null,null,null,null,null,null,null,null,null,null,null,null,0.15,null,""]
[null,null,null,null,null,null,null,null,null,null,null,null,null,0.15,null,""]
[null,null,null,null,null,null,null,null,null,null,null,null,null,0.15,null,""]
[null,null,null,null,null,null,null,null,null,null,null,null,null,0.15,null,""]
[null,null,null,null,null,null,null,null,null,null,null,null,null,0.15,null,""]
[null,null,null,null,null,null,null,null,null,null,null,null,null,0.15,null,""]
[null,null,null,null,null,null,null,null,null,null,null,null,null,0.15,null,""]
[null,null,null,null,null,null,null,null,null,null,null,null,null,0.15,null,""]
[null,null,null,null,null,null,null,null,null,null,null,null,null,0.15,null,""]
[null,null,null,null,null,null,null,null,null,null,null,null,null,0.15,null,""]
[null,null,null,null,null,null,null,null,null,null,null,null,null,0.15,null,""]
[null,null,null,null,null,null,null,null,null,null,null,null,null,0.15,null,""]
[null,null,null,null,null,null,null,null,null,null,null,null,null,0.15,null,""]
[null,null,null,null,null,null,null,null,null,null,null,null,null,0.15,null,""]
[null,null,null,null,null,null,null,null,null,null,null,null,null,0.15,null,""]
[null,null,null,null,null,null,null,null,null,null,null,null,null,0.15,null,""]
[null,null,null,null,null,null,null,null,null,null,null,null,null,0.15,null,""]
[null,null,null,null,null,null,null,null,null,null,null,null,null,0.15,null,""]
[null,null,null,null,null,null,null,null,null,null,null,null,null,0.15,null,""]
[null,null,null,null,null,null,null,null,null,null,null,null,null,0.15,null,""]
[null,null,null,null,null,null,null,null,null,null,null,null,null,0.15,null,""]
[null,null,null,null,null,null,null,null,null,null,null,null,null,0.15,null,""]
[null,null,null,null,null,null,null,null,null,null,null,null,null,0.15,null,""]
[null,null,null,null,null,null,null,null,null,null,null,null,null,0.15,null,""]
[null,null,null,null,null,null,null,null,null,null,null,null,null,0.15,null,""]
[null,null,null,null,null,null,null,null,null,null,null,null,null,0.15,null,""]
[null,null,null,null,null,null,null,null,null,null,null,null,null,0.15,null,""]
[null,null,null,null,null,null,null,null,null,null,null,null,null,null,null,""]
[null,null,null,null,null,null,null,null,null,null,null,null,null,null,null,""]
[null,null,null,null,null,null,null,null,null,null,null,null,null,null,null,""]
[null,null,null,null,null,null,null,null,null,null,null,null,null,null,null,""]
[null,null,null,null,null,null,null,null,null,null,null,null,null,null,null,""]
[null,null,null,null,null,null,null,null,null,null,null,null,null,null,null,""]
[null,null,null,null,null,null,null,null,null,null,null,null,null,null,null,""]
[null,null,null,null,null,null,null,null,null,null,null,null,null,null,null,""]
[null,null,null,null,null,null,null,null,null,null,null,null,null,null,null,""]
[null,null,null,null,null,null,null,null,null,null,null,null,null,null,null,""]
[null,null,null,null,null,null,null,null,null,null,null,null,null,null,null,""]
[null,null,null,null,null,null,null,null,null,null,null,null,null,null,null,""]
[null,null,null,null,null,null,null,null,null,null,null,null,null,null,null,""]
[null,null,null,null,null,null,null,null,null,null,null,null,null,null,null,""]
[null,null,null,null,null,null,null,null,null,null,null,null,null,null,null,""]
[null,null,null,null,null,null,null,null,null,null,null,null,null,null,null,""]
[null,null,null,null,null,null,null,null,null,null,null,null,null,null,null,""]
[null,null,null,null,null,null,null,null,null,null,null,null,null,null,null,""]
[null,null,null,null,null,null,null,null,null,null,null,null,null,null,null,""]
[null,null,null,null,null,null,null,null,null,null,null,null,null,null,null,""]
[null,null,null,null,null,null,null,null,null,null,null,null,null,null,null,{"$f":"IF(M836=\"\",\"\",M836-O836)","v":""}]
[null,null,null,null,null,null,null,null,null,null,null,null,null,null,null,""]
[null,null,null,null,null,null,null,null,null,null,null,null,null,null,null,""]
[null,null,null,null,null,null,null,null,null,null,null,null,null,null,null,""]
[null,null,null,null,null,null,null,null,null,null,null,null,null,null,null,""]
[null,null,null,null,null,null,null,null,null,null,null,null,null,null,null,""]
[null,null,null,null,null,null,null,null,null,null,null,null,null,null,null,""]
[null,null,null,null,null,null,null,null,null,null,null,null,null,null,null,""]
[null,null,null,null,null,null,null,null,null,null,null,null,null,null,null,""]
[null,null,null,null,null,null,null,null,null,null,null,null,null,null,null,""]
[null,null,null,null,null,null,null,null,null,null,null,null,null,null,null,""]
[null,null,null,null,null,null,null,null,null,null,null,null,null,null,null,""]
[null,null,null,null,null,null,null,null,null,null,null,null,null,null,null,""]
[null,null,null,null,null,null,null,null,null,null,null,null,null,null,null,""]
[null,null,null,null,null,null,null,null,null,null,null,null,null,null,null,""]
[null,null,null,null,null,null,null,null,null,null,null,null,null,null,null,""]
[null,null,null,null,null,null,null,null,null,null,null,null,null,null,null,""]
[null,null,null,null,null,null,null,null,null,null,null,null,null,null,null,""]
[null,null,null,null,null,null,null,null,null,null,null,null,null,null,null,""]
[null,null,null,null,null,null,null,null,null,null,null,null,null,null,null,""]
[null,null,null,null,null,null,null,null,null,null,null,null,null,null,null,""]
[null,null,null,null,null,null,null,null,null,null,null,null,null,null,null,""]
[null,null,null,null,null,null,null,null,null,null,null,null,null,null,null,""]
[null,null,null,null,null,null,null,null,null,null,null,null,null,null,null,""]
[null,null,null,null,null,null,null,null,null,null,null,null,null,null,null,""]
[null,null,null,null,null,null,null,null,null,null,null,null,null,null,null,""]
[null,null,null,null,null,null,null,null,null,null,null,null,null,null,null,""]
[null,null,null,null,null,null,null,null,null,null,null,null,null,null,null,""]
[null,null,null,null,null,null,null,null,null,null,null,null,null,null,null,""]
[null,null,null,null,null,null,null,null,null,null,null,null,null,null,null,""]
[null,null,null,null,null,null,null,null,null,null,null,null,null,null,null,""]
[null,null,null,null,null,null,null,null,null,null,null,null,null,null,null,""]
[null,null,null,null,null,null,null,null,null,null,null,null,null,null,null,""]
[null,null,null,null,null,null,null,null,null,null,null,null,null,null,null,""]
[null,null,null,null,null,null,null,null,null,null,null,null,null,null,null,""]
[null,null,null,null,null,null,null,null,null,null,null,null,null,null,null,""]
[null,null,null,null,null,null,null,null,null,null,null,null,null,null,null,""]
[null,null,null,null,null,null,null,null,null,null,null,null,null,null,null,""]
[null,null,null,null,null,null,null,null,null,null,null,null,null,null,null,""]
[null,null,null,null,null,null,null,null,null,null,null,null,null,null,null,""]
[null,null,null,null,null,null,null,null,null,null,null,null,null,null,null,""]
[null,null,null,null,null,null,null,null,null,null,null,null,null,null,null,""]
[null,null,null,null,null,null,null,null,null,null,null,null,null,null,null,""]
[null,null,null,null,null,null,null,null,null,null,null,null,null,null,null,""]
[null,null,null,null,null,null,null,null,null,null,null,null,null,null,null,""]
[null,null,null,null,null,null,null,null,null,null,null,null,null,null,null,""]
[null,null,null,null,null,null,null,null,null,null,null,null,null,null,null,""]
[null,null,null,null,null,null,null,null,null,null,null,null,null,null,null,""]
[null,null,null,null,null,null,null,null,null,null,null,null,null,null,null,""]
[null,null,null,null,null,null,null,null,null,null,null,null,null,null,null,""]
[null,null,null,null,null,null,null,null,null,null,null,null,null,null,null,""]
[null,null,null,null,null,null,null,null,null,null,null,null,null,null,null,""]
[null,null,null,null,null,null,null,null,null,null,null,null,null,null,null,""]
[null,null,null,null,null,null,null,null,null,null,null,null,null,null,null,""]
[null,null,null,null,null,null,null,null,null,null,null,null,null,null,null,""]
[null,null,null,null,null,null,null,null,null,null,null,null,null,null,null,""]
[null,null,null,null,null,null,null,null,null,null,null,null,null,null,null,""]
[null,null,null,null,null,null,null,null,null,null,null,null,null,null,null,""]
[null,null,null,null,null,null,null,null,null,null,null,null,null,null,null,""]
[null,null,null,null,null,null,null,null,null,null,null,null,null,null,null,""]
[null,null,null,null,null,null,null,null,null,null,null,null,null,null,null,""]
[null,null,null,null,null,null,null,null,null,null,null,null,null,null,null,""]
[null,null,null,null,null,null,null,null,null,null,null,null,null,null,null,""]
[null,null,null,null,null,null,null,null,null,null,null,null,null,null,null,""]
[null,null,null,null,null,null,null,null,null,null,null,null,null,null,null,{"$f":"IF(M900=\"\",\"\",M900-O900)","v":""}]
[null,null,null,null,null,null,null,null,null,null,null,null,null,null,null,""]
[null,null,null,null,null,null,null,null,null,null,null,null,null,null,null,""]
[null,null,null,null,null,null,null,null,null,null,null,null,null,null,null,""]
[null,null,null,null,null,null,null,null,null,null,null,null,null,null,null,""]
[null,null,null,null,null,null,null,null,null,null,null,null,null,null,null,""]
[null,null,null,null,null,null,null,null,null,null,null,null,null,null,null,""]
[null,null,null,null,null,null,null,null,null,null,null,null,null,null,null,""]
[null,null,null,null,null,null,null,null,null,null,null,null,null,null,null,""]
[null,null,null,null,null,null,null,null,null,null,null,null,null,null,null,""]
[null,null,null,null,null,null,null,null,null,null,null,null,null,null,null,""]
[null,null,null,null,null,null,null,null,null,null,null,null,null,null,null,""]
[null,null,null,null,null,null,null,null,null,null,null,null,null,null,null,""]
[null,null,null,null,null,null,null,null,null,null,null,null,null,null,null,""]
[null,null,null,null,null,null,null,null,null,null,null,null,null,null,null,""]
[null,null,null,null,null,null,null,null,null,null,null,null,null,null,null,""]
[null,null,null,null,null,null,null,null,null,null,null,null,null,null,null,""]
[null,null,null,null,null,null,null,null,null,null,null,null,null,null,null,""]
[null,null,null,null,null,null,null,null,null,null,null,null,null,null,null,""]
[null,null,null,null,null,null,null,null,null,null,null,null,null,null,null,""]
[null,null,null,null,null,null,null,null,null,null,null,null,null,null,null,""]
[null,null,null,null,null,null,null,null,null,null,null,null,null,null,null,""]
[null,null,null,null,null,null,null,null,null,null,null,null,null,null,null,""]
[null,null,null,null,null,null,null,null,null,null,null,null,null,null,null,""]
[null,null,null,null,null,null,null,null,null,null,null,null,null,null,null,""]
[null,null,null,null,null,null,null,null,null,null,null,null,null,null,null,""]
[null,null,null,null,null,null,null,null,null,null,null,null,null,null,null,""]
[null,null,null,null,null,null,null,null,null,null,null,null,null,null,null,""]
[null,null,null,null,null,null,null,null,null,null,null,null,null,null,null,""]
[null,null,null,null,null,null,null,null,null,null,null,null,null,null,null,""]
[null,null,null,null,null,null,null,null,null,null,null,null,null,null,null,""]
[null,null,null,null,null,null,null,null,null,null,null,null,null,null,null,""]
[null,null,null,null,null,null,null,null,null,null,null,null,null,null,null,""]
[null,null,null,null,null,null,null,null,null,null,null,null,null,null,null,""]
[null,null,null,null,null,null,null,null,null,null,null,null,null,null,null,""]
[null,null,null,null,null,null,null,null,null,null,null,null,null,null,null,""]
[null,null,null,null,null,null,null,null,null,null,null,null,null,null,null,""]
[null,null,null,null,null,null,null,null,null,null,null,null,null,null,null,""]
[null,null,null,null,null,null,null,null,null,null,null,null,null,null,null,""]
[null,null,null,null,null,null,null,null,null,null,null,null,null,null,null,""]
[null,null,null,null,null,null,null,null,null,null,null,null,null,null,null,""]
[null,null,null,null,null,null,null,null,null,null,null,null,null,null,null,""]
[null,null,null,null,null,null,null,null,null,null,null,null,null,null,null,""]
[null,null,null,null,null,null,null,null,null,null,null,null,null,null,null,""]
[null,null,null,null,null,null,null,null,null,null,null,null,null,null,null,""]
[null,null,null,null,null,null,null,null,null,null,null,null,null,null,null,""]
[null,null,null,null,null,null,null,null,null,null,null,null,null,null,null,""]
[null,null,null,null,null,null,null,null,null,null,null,null,null,null,null,""]
[null,null,null,null,null,null,null,null,null,null,null,null,null,null,null,""]
[null,null,null,null,null,null,null,null,null,null,null,null,null,null,null,""]
[null,null,null,null,null,null,null,null,null,null,null,null,null,null,null,""]
[null,null,null,null,null,null,null,null,null,null,null,null,null,null,null,""]
[null,null,null,null,null,null,null,null,null,null,null,null,null,null,null,""]
[null,null,null,null,null,null,null,null,null,null,null,null,null,null,null,""]
[null,null,null,null,null,null,null,null,null,null,null,null,null,null,null,""]
[null,null,null,null,null,null,null,null,null,null,null,null,null,null,null,""]
[null,null,null,null,null,null,null,null,null,null,null,null,null,null,null,""]
[null,null,null,null,null,null,null,null,null,null,null,null,null,null,null,""]
[null,null,null,null,null,null,null,null,null,null,null,null,null,null,null,""]
[null,null,null,null,null,null,null,null,null,null,null,null,null,null,null,""]
[null,null,null,null,null,null,null,null,null,null,null,null,null,null,null,""]
[null,null,null,null,null,null,null,null,null,null,null,null,null,null,null,""]
[null,null,null,null,null,null,null,null,null,null,null,null,null,null,null,""]
[null,null,null,null,null,null,null,null,null,null,null,null,null,null,null,""]
[null,null,null,null,null,null,null,null,null,null,null,null,null,null,null,{"$f":"IF(M964=\"\",\"\",M964-O964)","v":""}]
[null,null,null,null,null,null,null,null,null,null,null,null,null,null,null,""]
[null,null,null,null,null,null,null,null,null,null,null,null,null,null,null,""]
[null,null,null,null,null,null,null,null,null,null,null,null,null,null,null,""]
[null,null,null,null,null,null,null,null,null,null,null,null,null,null,null,""]
[null,null,null,null,null,null,null,null,null,null,null,null,null,null,null,""]
[null,null,null,null,null,null,null,null,null,null,null,null,null,null,null,""]
[null,null,null,null,null,null,null,null,null,null,null,null,null,null,null,""]
[null,null,null,null,null,null,null,null,null,null,null,null,null,null,null,""]
[null,null,null,null,null,null,null,null,null,null,null,null,null,null,null,""]
[null,null,null,null,null,null,null,null,null,null,null,null,null,null,null,""]
[null,null,null,null,null,null,null,null,null,null,null,null,null,null,null,""]
[null,null,null,null,null,null,null,null,null,null,null,null,null,null,null,""]
[null,null,null,null,null,null,null,null,null,null,null,null,null,null,null,""]
[null,null,null,null,null,null,null,null,null,null,null,null,null,null,null,""]
[null,null,null,null,null,null,null,null,null,null,null,null,null,null,null,""]
[null,null,null,null,null,null,null,null,null,null,null,null,null,null,null,""]
[null,null,null,null,null,null,null,null,null,null,null,null,null,null,null,""]
[null,null,null,null,null,null,null,null,null,null,null,null,null,null,null,""]
[null,null,null,null,null,null,null,null,null,null,null,null,null,null,null,""]
[null,null,null,null,null,null,null,null,null,null,null,null,null,null,null,""]
[null,null,null,null,null,null,null,null,null,null,null,null,null,null,null,""]
[null,null,null,null,null,null,null,null,null,null,null,null,null,null,null,""]
[null,null,null,null,null,null,null,null,null,null,null,null,null,null,null,""]
[null,null,null,null,null,null,null,null,null,null,null,null,null,null,null,""]
[null,null,null,null,null,null,null,null,null,null,null,null,null,null,null,""]
[null,null,null,null,null,null,null,null,null,null,null,null,null,null,null,""]
[null,null,null,null,null,null,null,null,null,null,null,null,null,null,null,""]
[null,null,null,null,null,null,null,null,null,null,null,null,null,null,null,""]
[null,null,null,null,null,null,null,null,null,null,null,null,null,null,null,""]
[null,null,null,null,null,null,null,null,null,null,null,null,null,null,null,""]
[null,null,null,null,null,null,null,null,null,null,null,null,null,null,null,""]
[null,null,null,null,null,null,null,null,null,null,null,null,null,null,null,""]
[null,null,null,null,null,null,null,null,null,null,null,null,null,null,null,""]
[null,null,null,null,null,null,null,null,null,null,null,null,null,null,null,""]
[null,null,null,null,null,null,null,null,null,null,null,null,null,null,null,""]
[null,null,null,null,null,null,null,null,null,null,null,null,null,null,null,""]
[]
[null,null,null,null,null,null,null,null,null,null,null,null,"غير موجود"]
[]
[null,null,null,null,null,null,null,null,null,null,null,null,"غير موجود"]
[]
[null,null,null,null,null,null,null,null,null,null,null,null,"غير موجود"]